Cogmind - Beta 17 @@@ ROGUE MODE // 2026.07.03 @ 02:08:22 Player: TheSkyeDoctor Result: Destroyed by LA-AWR(R) with Subdweller Laser Performance ------------- Evolutions (0) 0 Regions Visited (2) 400 Robots Destroyed (14) 70 Value Destroyed (225) 225 Prototype IDs (2) 40 Alien Tech Used (0) 0 Bonus (6332) 6332 TOTAL SCORE: 7067 Bonus ------- Prayed to X0-1V1 5000 Major X0-1V1 Interference 1350 Friendly Fire -18 Cogmind --------- Core Integrity 0/200 Matter 351/900 Energy 265/265 System Corruption 0% Temperature Cool (6) Movement Treading (160) Location -10/Subcaves Parts ------- > --- POWER (1) -------- Reinforced Ion Engine > --- PROPULSION (3) --- Spiked Treads > --- UTILITY (2) ------ Small Storage Unit Targeting Computer > --- WEAPON (1) ------- Hammer (fused) > --- INVENTORY (8) ---- Light Ion Engine Wheel Improved Terrain Scanner Seismic Detector X0-1V1's Piety Tracker Assault Rifle Battle Rifle Grenade Launcher Peak State ------------ > --- POWER ------------ Cooled Ion Engine > --- PROPULSION ------- Light Treads Spiked Treads > --- UTILITY ---------- Small Storage Unit X0-1V1's Piety Tracker > --- WEAPON ----------- Battle Rifle Hammer > --- INVENTORY -------- Light Ion Engine Light Treads Wheel Improved Terrain Scanner Seismic Detector Assault Rifle Battle Rifle Grenade Launcher [Rating: 24] Favorites ----------- Power Light Ion Engine Engine Light Ion Engine Propulsion Light Treads Treads Light Treads Utility Small Storage Unit Device X0-1V1's Piety Tracker Storage Small Storage Unit Processor Targeting Computer Weapon Assault Rifle Energy Gun EM Pulse Gun Ballistic Gun Assault Rifle Impact Weapon Hammer Build | -11 -10 -10 ------- Run | Yrd Mat Sub Slots Evolved . | . . . Power . | . . . Propulsion . | . . . Utility . | . . . Weapon . | . . . Parts Attached 12 | 7 1 4 Power 1 | 1 . . Engine 1 | 1 . . Core . | . . . Reactor . | . . . Propulsion 3 | 2 . 1 Treads 3 | 2 . 1 Leg . | . . . Wheel . | . . . Hover . | . . . Flight . | . . . Utility 4 | 2 1 1 Device 2 | 1 1 . Storage 1 | 1 . . Processor 1 | . . 1 Hackware . | . . . Protection . | . . . Artifact . | . . . Weapon 4 | 2 . 2 Energy Gun 1 | 1 . . Energy Cannon . | . . . Ballistic Gun 2 | 1 . 1 Ballistic Cannon . | . . . Launcher . | . . . Special Weapon . | . . . Impact Weapon 1 | . . 1 Slashing Weapon . | . . . Piercing Weapon . | . . . Special Melee Weapon . | . . . Unidentified Prototypes 1 | . 1 . Parts Lost 5 | . . 5 Power 2 | . . 2 Propulsion 2 | . . 2 Utility 1 | . . 1 Weapon . | . . . Highest Loss Streak 3 | . . 3 To Critical Strikes . | . . . Average Backups 5 | 2 4 7 Power . | . 1 1 Propulsion . | . 1 1 Utility 1 | . 1 2 Weapon 1 | . 1 2 Tool/Special . | . . . Unused Backups 6 | . . 6 Power 1 | . . 1 Propulsion 1 | . . 1 Utility 2 | . . 2 Weapon 2 | . . 2 Tool/Special . | . . . Average Slot Usage (%) 90 | . 100 86 Engine 13 | . 14 13 Treads 24 | . 28 22 Device 10 | . 14 8 Storage 14 | . 14 14 Processor 3 | . . 5 Energy Gun 5 | . 14 1 Ballistic Gun 9 | . 14 7 Impact Weapon 8 | . . 12 Peak Build Rating 24 | 7 19 24 Average Rating 12 | 5 7 15 On Entrance 8 | . 7 19 Avg Prop Armor Cover (%) . | . . . Naked Turns . | . . . Heaviest Build 18 | 13 13 18 Greatest Support 60 | 40 40 60 Greatest Overweight (x) . | . . . Average Overweight (x) . | . . . Largest Inventory Capacity 8 | 8 8 8 Average Capacity 7 | 7 8 8 Most Carried 8 | 3 6 8 Average Carried 5 | 2 4 7 Final Capacity 8 | 8 8 8 Final Carried 8 | 3 6 8 Class Distribution -------------------- 100% | Mutant Dominant Class ---------------- Mutant | -10/Materials Mutant | -10/Subcaves Resources | -11 -10 -10 ----------- Run | Yrd Mat Sub Matter Collected 501 | 320 10 171 Remotely . | . . . Salvage Created 372 | 214 . 158 Parts 33 | 22 . 11 Haulers Intercepted . | . . . Recyclers Shooed . | . . . Parts Field Recycled . | . . . Retrieved Matter . | . . . Parts Self-Destructed 10 | . . 10 Prevented . | . . . Parts Restored . | . . . Kills | -11 -10 -10 ------- Run | Yrd Mat Sub Combat Hostiles Destroyed 5 | . . 5 Melee 1 | . . 1 Guns 2 | . . 2 Classes Destroyed 6 | 3 . 3 Worker 2 | 2 . . Tunneler 6 | 6 . . Recycler 1 | 1 . . Swarmer 1 | . . 1 Sentry 1 | . . 1 Subdweller 3 | . . 3 Best Kill Streak 3 | 3 . 1 Combat Bots Only 1 | . . 1 Max Kills in Single Turn 2 | 2 . 1 Gunslinging . | . . . Exploded . | . . . Melee 1 | . . 1 Uniques/NPCs Destroyed . | . . . Combat | -11 -10 -10 -------- Run | Yrd Mat Sub Hostile Shots Fired 71 | . . 71 Missed 15 | . . 15 Hits 56 | . . 56 Projectile 56 | . . 56 Critical Strikes 2 | . . 2 Damage Taken 1118 | 30 . 1088 Core 235 | . . 235 Absorbed by Shields 11 | . . 11 Core Remaining (%) 100 | 100 . . Volleys Fired 45 | 20 . 25 Largest 2 | 2 . 1 Hottest 60 | 60 . 25 Shots Fired 65 | 40 . 25 Gun 65 | 40 . 25 Cannon . | . . . Launcher . | . . . Special . | . . . Kinetic 45 | 20 . 25 Thermal . | . . . Explosive . | . . . Electromagnetic 20 | 20 . . Robot Hit Streak 18 | 5 . 18 Robot Miss Streak 3 | 3 . 1 Penetration Max . | . . . Secondary Targets . | . . . Shots Hit Robots 55 | 19 . 36 Core Hits 17 | 10 . 7 Critical Kills . | . . . Critical Parts Destroyed 2 | . . 2 Critical Strikes 2 | . . 2 Smash 2 | . . 2 Melee Attacks 37 | . . 37 Impact 37 | . . 37 Slashing . | . . . Piercing . | . . . Sneak Attacks 1 | . . 1 Combat Hostiles . | . . . Follow-up Attacks . | . . . Damage Inflicted 1019 | 335 . 684 Guns 602 | 262 . 340 Cannons . | . . . Explosions 73 | 73 . . Melee 344 | . . 344 Ramming . | . . . Kinetic 446 | 106 . 340 Thermal 73 | 73 . . Explosive . | . . . Electromagnetic 156 | 156 . . Impact 344 | . . 344 Slashing . | . . . Piercing . | . . . Highest Corruption . | . . . Average Corruption . | . . . Corruption Purged . | . . . Corruption Blocked . | . . . Overload Shots . | . . . Overflow Damage 46 | . . 46 Projectiles . | . . . Explosions . | . . . Melee 46 | . . 46 Knockbacks 4 | . . 4 Impact 4 | . . 4 Kinetic . | . . . Secondary . | . . . Self-Inflicted Damage 30 | 30 . . Shots 1 | 1 . . Rammed . | . . . Targets Rammed . | . . . Kicked . | . . . Crushed . | . . . Highest Temperature 210 | 12 . 210 Average Temperature 68 | 12 . 90 Received Heat Transfer 314 | . . 314 Siege Activations . | . . . Martial Activations . | . . . Shielding Activations . | . . . Robots Disrupted . | . . . Combat Hostiles . | . . . Robots Corrupted 1 | . . 1 Combat Hostiles 1 | . . 1 Parts Fried 2 | 1 . 1 Impact Corruptions 3 | . . 3 Robots Melted . | . . . Combat Hostiles . | . . . Parts Melted . | . . . Heat Transferred 150 | 150 . . Parts Sabotaged . | . . . Parts Stolen . | . . . Parts Stripped . | . . . Power Chain Reactions 2 | 2 . . Alert | -11 -10 -10 ------- Run | Yrd Mat Sub Maximum Alert Level . | . . . Low Security (%) 100 | 100 100 . Level 1 . | . . . Level 2 . | . . . Level 3 . | . . . Level 4 . | . . . Level 5 . | . . . High Security . | . . . Max Security . | . . . Peak Influence 10 | 10 . . Initial . | . . . Average . | 1 . . Influence Increases 115 | 45 . 70 Destroy 0b10 Robot/C 40 | . . 40 Destroy 0b10 Robot/NC 45 | 45 . . Lose Combat Pursuer 30 | . . 30 Influence Decreases 115 | 45 . 70 Time Decay 105 | 45 . 60 Lost Part 10 | . . 10 Squads Dispatched . | . . . Investigation . | . . . Extermination . | . . . Reinforcement . | . . . Assault . | . . . Garrison . | . . . Intercept . | . . . Searches Triggered . | . . . Construction Impeded . | . . . Haulers Reinforced . | . . . Active Scanning Responses . | . . . Cargo Convoy Interrupts . | . . . Stealth | -11 -10 -10 --------- Run | Yrd Mat Sub Distress Signals . | . . . Communications Jammed . | . . . Distress Signals . | . . . Times Spotted 7 | . . 7 Peak Tracking Total 3 | . . 3 Tactical Retreats 1 | . . 1 Traps | -11 -10 -10 ------- Run | Yrd Mat Sub Traps Triggered . | . . . Indirectly . | . . . Trap Hack Attempts . | . . . Triggered . | . . . Disarmed . | . . . Reprogrammed . | . . . Reused . | . . . Traps Extracted . | . . . Installed . | . . . Triggered . | . . . Machines | -11 -10 -10 ---------- Run | Yrd Mat Sub Machines Disabled . | . . . Max in Single Turn . | . . . Machines Repaired . | . . . Machines Dismantled . | . . . Machines Sabotaged . | . . . Overloaded Fab Kills . | . . . Hacking | -11 -10 -10 --------- Run | Yrd Mat Sub Machines Accessed . | . . . Terminals . | . . . Fabricators . | . . . Repair Stations . | . . . Recycling Units . | . . . Scanalyzers . | . . . Garrison Access . | . . . Total Hacks . | . . . Successful . | . . . Failed . | . . . Catastrophic . | . . . Database Lockouts . | . . . Manual 1 | . 1 . Terminals . | . . . Fabricators . | . . . Repair Stations . | . . . Recycling Units . | . . . Scanalyzers . | . . . Garrison Access . | . . . Terminal Hacks . | . . . Fabricator Hacks . | . . . Repair Station Hacks . | . . . Recycling Unit Hacks . | . . . Scanalyzer . | . . . Garrison Access Hacks . | . . . Unauthorized Hacks . | . . . Terminals . | . . . Fabricators . | . . . Repair Stations . | . . . Recycling Units . | . . . Scanalyzers . | . . . Garrison Access . | . . . Data Cores Recovered . | . . . Used . | . . . Hacking Detections . | . . . Full Trace Events . | . . . Feedback Events . | . . . Feedback Blocked . | . . . Robot Schematics Acquired . | . . . Robots Built . | . . . Authchips . | . . . Time . | . . . Total Robot Build Rating . | . . . Part Schematics Acquired . | . . . Parts Built . | . . . Authchips . | . . . Time . | . . . Total Part Build Rating . | . . . Part Studies Acquired . | . . . Parts Repaired . | . . . Time . | . . . Parts Recycled . | . . . Recycled Matter . | . . . Retrieved Matter . | . . . Retrieved Components . | . . . Parts Scanalyzed . | . . . Part Schematics Acquired . | . . . Parts Damaged . | . . . Bothacking | -11 -10 -10 ------------ Run | Yrd Mat Sub Used RIF Installer . | . . . Robots Hacked . | . . . Non-combat . | . . . Combat . | . . . Robot Hacks Applied . | . . . Relay Couplers Released . | . . . Fabnet Peak Effective % . | . . . Robots Rewired . | . . . Allies Hacked . | . . . Hacks Repelled . | . . . Allies | -11 -10 -10 -------- Run | Yrd Mat Sub Total Allies . | . . . Largest Group . | . . . Highest-Rated Group . | . . . Highest-Rated Ally . | . . . Total Orders . | . . . Ally Attacks . | . . . Total Damage . | . . . Kills . | . . . Allies Corrupted . | . . . Allies Melted . | . . . X0-1V1 Amusement Gains 20 | . 10 10 Good Acts 8 | . . 8 Bad Acts 10 | . . 10 Intel | -11 -10 -10 ------- Run | Yrd Mat Sub Active Infowar (turns) 386 | 2 384 . Seismic 386 | 2 384 . Robot Analysis Total . | . . . Derelict Logs Recovered 1 | . . 1 Drone Launches . | . . . Drone Recoveries . | . . . Exploration | -11 -10 -10 ------------- Run | Yrd Mat Sub Turns Passed 1559 | 233 392 934 Spaces Moved 719 | 103 140 476 Core 4 | 4 . . Treads 715 | 99 140 476 Legs . | . . . Wheels . | . . . Hover . | . . . Flight . | . . . Fastest Speed 50 | 50 160 160 Average Speed 159 | 155 160 160 Slowest Speed 160 | 160 160 160 Overloaded Moves . | . . . Propulsion Burnouts . | . . . Robots Hopped . | . . . Potential Cave-ins 3 | . . 3 Cave-ins Triggered . | . . . Exploration Rate (%) 24 | 5 28 39 Regions Visited 2 Branch Regions 1 Pre-discovered Areas 2 | . . 2 Known Exits Taken . | . . . Unknown Exits Taken 2 | 1 1 . Scrap Searched 1 | . . 1 Spaces Dug . | . . . Terrain Destroyed 6 | 6 . . Melee . | . . . Projectile . | . . . AOE 6 | 6 . . Terrain Rammed . | . . . Walls Destroyed . | . . . Machines Disabled . | . . . Actions | -11 -10 -10 --------- Run | Yrd Mat Sub Total 999 | 132 308 559 Wait 173 | . 165 8 Move 717 | 102 139 476 Hop . | . . . Pick Up 10 | 3 3 4 Fast Attach 8 | 7 . 1 Attach 2 | . . 2 Detach . | . . . Swap 4 | . 1 3 Drop 1 | . . 1 Fire 45 | 20 . 25 Melee 37 | . . 37 Ram . | . . . Kick . | . . . Crush . | . . . Escape Stasis 2 | . . 2 Rewire . | . . . Trap . | . . . Miscellaneous . | . . . Route ------- -11/Scrapyard -10/Materials (discovered 2 exits: [*Min] / [*Sub]) -10/Subcaves (discovered 1 exit: *Mat) History --------- Turn | Location | Event 28 | -11/Scrapyard | Discovered new exit (range 16) 234 | -11/Scrapyard | Entered Materials 310 | -10/Materials | Build established: Mutant 395 | -10/Materials | Discovered new exit (range 16) 572 | -10/Materials | Discovered new exit (range 10) 617 | -10/Materials | Prayed at D.C.S.S. Altar Unit 626 | -10/Materials | Entered Subcaves 627 | -10/Subcaves | Approached by a straggling Scientist 866 | -10/Subcaves | Ranged accuracy permanently improved by X0-1V1 (+5%; -50 max core) 1018 | -10/Subcaves | X0-1V1 sent you into danger 1036 | -10/Subcaves | Learned location of Zion (-7) 1036 | -10/Subcaves | Met a Zionite searching for "candidates" 1106 | -10/Subcaves | A swath of the cavern ceiling suddenly collapsed 1106 | -10/Subcaves | Identified exit to Materials 1106 | -10/Subcaves | X0-1V1 revealed exit location to -8/Materials 1107 | -10/Subcaves | X0-1V1 mutated your Weapon slot to Propulsion slot 1118 | -10/Subcaves | X0-1V1 sent you into danger 1202 | -10/Subcaves | Disturbed a concealed Subdweller 1218 | -10/Subcaves | Core integrity fell below 50% 1225 | -10/Subcaves | Core integrity fell below 20% 1255 | -10/Subcaves | Lost 3 parts (1p1n1u) 1268 | -10/Subcaves | Shifting Twisted Machinery released Sub. Machine Gun 1287 | -10/Subcaves | Shifting Twisted Machinery released Sub. Laser 1552 | -10/Subcaves | Core integrity restored by X0-1V1 (+30) 1560 | -10/Subcaves | Destroyed by LA-AWR(R) with Subdweller Laser Last Messages --------------- Machinery. 01273_ X0-1V1: "And it's a trip and a fumble!" 01273_ Spk. Treads tossed aside. 01274_ Acquired Spk. Treads. 01277_ Acquired 9 matter. 01285_ Melee accuracy returns to normal. Sub. Laser falls loose from the Twisted Machinery. 01301_ Destroyed Lgt. Ion Engine. 01301_ S-10 Pest system corrupted by crushing effect. 01302_ S-10 Pest system terminally corrupted. 01302_ Flight Unit fried. 01304_ Acquired 16 matter. 01335_ SR-4OE(u) tweaks Twisted Machinery. 01512_ Acquired derelict log, extracted data. World map confirmed: -7/Zion. 01552_ X0-1V1: "See? It buffs right out!" (+30 core integrity) 01560_ X0-1V1 snickers! Map ----- +----------------------------------------------------+ | ?????????????????????????????????????????????????? | | ?????????????????????????????????????????????????? | | ?????????????????????????????????????????????????? | | ?????????????????????????????????????????????????? | | ?????????????????????????????????????????????????? | | ?????????????????????????????????????????????????? | | ?????????????????????????????????????????????????? | | ?????????????????????????????????????????????????? | | ?????????????????????????????????????????????????? | | ?????????????????????????????????????????????????? | | ?????????????????????????????????????????????????? | | ?????????????????????????????????????????????????? | | ?????????????????????????????????????????????????? | | ?????????????????????????????????????????????????? | | ?????????????????????????????????????????????????? | | ?????????????????????????????????????????????????? | | ?????????????????????????????????????????????????? | | ?????????????????????????????????????????????????? | | ?????????????????????????????????????????????????? | | ?????????????????????????????????????????????????? | | ?????????????????????????????????????????????????? | | ?????????????????????????????????????????????????? | | ?????????????????????????????????????????????????? | | ??????????????????????????#####??????????????????? | | ?????????????????????##?##<&$$#???????###????????? | | ????????????????## #?? ##@R <#?###### #????????? | | ????????????????# # ##### #?????????? | | ???????????????# < # #?????????? | | ??????????????# ##### ## ## ?????????? | | ?????????????????????### #" " #???????????????? | | ?????????????????????# #???????????????? | | ?????????????????????## ##???????????????? | | ??????????????????????# ##????????????????? | | ???????????????????#### ##????????????????? | | ??????????????????## ###???????????????? | | ??????????????????# ## #??????????##??? | | ??????????????????# ###### ##???????### ##? | | ??????????????????## #????????# ##? | | ???????????????????## ##????????# #?# | | ????????????????????# # # ####?????## #?? | | ????????????????????###### # ##????# #??? | | ?????????????????????????## ##???# #??? | | ??????????????????????????## ##### #????? | | ???????????????????????????#### # ## ###??? | | ??????????????????????????????# #### | | ??????????????????????????????## | | ???????????????????????????????# #### ## | | ???????????????????????????????#####??####### | | ????????????????????????????????????????????## | | ?????????????????????????????????????????????## | +----------------------------------------------------+ Best States ------------- Heat Dissipation 25 Energy Generation 14 Energy Capacity 280 Matter Stores 351 Matter Capacity 900 Sight Range 16 Terrain Scan Density 10 Evasion (%) 40 Targeting Accuracy 5 Recoil Reduction 3 Item Schematics ----------------- None Robot Schematics ------------------ None Fabricated ------------ Nothing Repaired ---------- Nothing Studied --------- None Alien Tech Used ----------------- None Achievements -------------- None Challenges ------------ None Game ------ Seed GrenadeZhirovBoomstick Manual? 0 Play Time 00:08:40 Cumulative 111.8 hours Start 2026.07.03 @ 02:01:13 End 2026.07.03 @ 02:08:22 Sessions 1 Manual Loads 0 Difficulty Rogue Special Mode None Game No. 238 Rogue 238 Adventurer 0 Explorer 0 Win Type - Total 0 Types 0/0/0/0/0/0/0/0/0/0 Lore% 50 Gallery% 51 Achievement% 41 Wizard Run 0 Options --------- Layout 2 ASCII 0 Keyboard 1 Movement Arrows Keybinds 0 Fullscreen 1 Font 24/Smallcaps Map View 50x44 Zoom Use 0% Tactical HUD 1 Map Filters NONE Filters NONE Steam 1 RUN: 35a16818-0adf-4681-87e7-1b3e41078c3a